fUSD/lending_fUSD_20240608
["ID","MTS","AMOUNT","RATE_DAILY","PERIOD"]
[328805417,1717804983022,150.0,0.00019725,2]
[328805418,1717805028003,2875.03441147,0.00017259,2]
[328805419,1717805034374,209.41336991,0.00017259,2]
[328805420,1717805048216,1489.54389462,0.00017259,2]
[328805421,1717805068541,327.03263673,0.00017259,2]
[328805422,1717805068582,3064.39202491,0.00017259,2]
[328805423,1717805093863,2236.76749892,0.00017259,2]
[328805424,1717805107092,941.94965729,0.00017259,2]
[328805425,1717805115818,14249.79553176,0.00017259,2]
[328805428,1717805355230,-226.6238354,0.000201,2]
[328805429,1717805355259,-331.7584801,0.00023,2]
[328805430,1717805355282,-192.00668,0.00024261,2]
[328805431,1717805355305,-154.73,0.00024384,2]
[328805432,1717805355328,-327.03263673,0.00024847,2]
[328805433,1717805355351,-3899.0556,0.00024848,2]
[328805434,1717805355374,-491.601,0.00024948,2]
[328805435,1717805355397,-499.99,0.00024948,2]
[328805436,1717805355422,-183.3,0.00024948,2]
[328805437,1717805355445,-1250.0,0.00025,2]
[328805438,1717805355468,-2430.66,0.00025,2]
[328805439,1717805355495,-2169.69,0.00025387,2]
[328805440,1717805355522,-264.73,0.00025594,2]
[328805441,1717805372318,226.6238354,0.00022498,2]
[328805442,1717805392334,226.6238354,0.00022498,2]
[328805443,1717805412348,226.6238354,0.00022498,2]
[328805444,1717805430428,226.6238354,0.00022498,2]
[328805461,1717805432082,-1133.16129937,0.00026721,2]
[328805462,1717805432093,-500.0,0.00026721,2]
[328805463,1717805432151,-22266.83870063,0.00026721,2]
[328805464,1717805432161,-2029.4,0.00026744,2]
[328805465,1717805432170,-164.97986529,0.0002685,2]
[328805466,1717805432180,-250.0,0.00026872,2]
[328805467,1717805432189,-194.38289586,0.00026938,2]
[328805468,1717805432198,-150.99,0.00026938,2]
[328805469,1717805432208,-150.99,0.00026938,2]
[328805470,1717805432217,-152.45521484,0.0002694,2]
[328805471,1717805432227,-152.33140726,0.00026947,2]
[328805472,1717805432236,-175.72,0.00026954,2]
[328805473,1717805432246,-152.59184143,0.00026962,2]
[328805474,1717805432256,-752.30654583,0.00026998,2]
[328805475,1717805432265,-1300.0,0.00027,2]
[328805476,1717805432275,-194.38289586,0.00027001,2]
[328805477,1717805432284,-152.45521484,0.00027002,2]
[328805478,1717805432293,-164.97986529,0.00027084,2]
[328805479,1717805432304,-164.97986529,0.00027112,2]
[328805480,1717805432313,-164.97986529,0.00027133,2]
[328805481,1717805432322,-152.33140726,0.00027135,2]
[328805482,1717805432332,-2627.03423458,0.00027147,2]
[328805483,1717805432341,-153.90788872,0.00027155,2]
[328805484,1717805432351,-154.94418119,0.00027243,2]
[328805485,1717805432360,-164.97986529,0.00027261,2]
[328805486,1717805432369,-194.38289586,0.00027271,2]
[328805487,1717805432378,-152.45521484,0.00027312,2]
[328805488,1717805432387,-2627.03423458,0.00027316,2]
[328805489,1717805432397,-169.1813528,0.00027363,2]
[328805490,1717805432406,-152.33140726,0.00027363,2]
[328805491,1717805432415,-194.38289586,0.00027395,2]
[328805492,1717805432425,-2627.03423458,0.00027446,2]
[328805493,1717805432435,-408.73567761,0.00027459,2]
[328805494,1717805432444,-2627.03423458,0.00027462,2]
[328805495,1717805432454,-2627.03423458,0.00027475,2]
[328805496,1717805432465,-153.90788872,0.00027513,2]
[328805497,1717805432475,-154.45886144,0.00027539,2]
[328805498,1717805432484,-154.94418119,0.00027553,2]
[328805499,1717805432494,-194.38289586,0.00027557,2]
[328805500,1717805432503,-408.73567761,0.00027568,2]
[328805501,1717805432513,-164.97986529,0.00027582,2]
[328805502,1717805432522,-152.33140726,0.00027612,2]
[328805503,1717805432532,-152.45521484,0.00027636,2]
[328805504,1717805432541,-155.29733055,0.00027652,2]
[328805506,1717805432552,-2627.03423458,0.0002769,2]
[328805507,1717805432562,-152.33140726,0.00027694,2]
[328805508,1717805432571,-164.97986529,0.00027696,2]
[328805509,1717805432580,-2627.03423458,0.00027722,2]
[328805510,1717805432590,-2627.03423458,0.00027725,2]
[328805511,1717805432599,-194.38289586,0.00027786,2]
[328805512,1717805432608,-164.97986529,0.00027823,2]
[328805513,1717805432617,-408.73567761,0.00027834,2]
[328805514,1717805432626,-264.73,0.00027858,2]
[328805515,1717805432636,-158.03040467,0.0002786,2]
[328805516,1717805432645,-408.73567761,0.00027861,2]
[328805517,1717805432654,-194.38289586,0.00027931,2]
[328805518,1717805432664,-408.73567761,0.00027981,2]
[328805519,1717805432673,-164.97986529,0.00027988,2]
[328805520,1717805432683,-292.9468926,0.00028,2]
[328805521,1717805432692,-226.58078525,0.00028,2]
[328805522,1717805432702,-194.38289586,0.00028009,2]
[328805523,1717805432711,-194.38289586,0.00028057,2]
[328805524,1717805432720,-173.37524902,0.00028064,2]
[328805525,1717805432731,-600.0,0.00028111,2]
[328805526,1717805432741,-194.38289586,0.00028146,2]
[328805527,1717805432750,-164.97986529,0.00028195,2]
[328805528,1717805432759,-151.14659696,0.00028203,2]
[328805529,1717805432769,-164.97986529,0.00028237,2]
[328805530,1717805432780,-152.59184143,0.00028258,2]
[328805531,1717805432790,-153.90788872,0.00028288,2]
[328805532,1717805432799,-150.54755583,0.00028291,2]
[328805533,1717805432809,-568.269417,0.000283,2]
[328805534,1717805432819,-155.29733055,0.00028311,2]
[328805535,1717805432828,-154.94418119,0.00028351,2]
[328805536,1717805432838,-408.73567761,0.00028379,2]
[328805537,1717805432848,-152.45521484,0.000284,2]
[328805538,1717805432858,-161.725471,0.00028435,2]
[328805539,1717805432868,-153.90788872,0.0002844,2]
[328805540,1717805432877,-152.59184143,0.00028466,2]
[328805541,1717805432887,-152.33140726,0.00028467,2]
[328805542,1717805432897,-151.0,0.00028496,7]
[328805543,1717805432907,-152.45521484,0.00028509,2]
[328805544,1717805432917,-164.97986529,0.00028513,2]
[328805545,1717805432928,-155.29733055,0.00028519,2]
[328805546,1717805432938,-194.38289586,0.00028531,2]
[328805547,1717805432948,-408.73567761,0.00028533,2]
[328805548,1717805432957,-166.66666666,0.00028539,2]
[328805549,1717805432967,-1000.0,0.00028569,2]
[328805550,1717805432976,-152.59184143,0.00028592,2]
[328805551,1717805432986,-2627.03423458,0.00028731,2]
[328805552,1717805432995,-4859.8,0.00028742,2]
[328805553,1717805433005,-164.27457146,0.00028767,30]
[328805554,1717805433016,-152.45521484,0.00028795,2]
[328805555,1717805433029,-399.12986961,0.00028798,2]
[328805556,1717805433039,-218.77937739,0.000288,4]
[328805557,1717805433048,-300.0,0.000288,2]
[328805558,1717805433057,-408.73567761,0.00028838,2]
[328805559,1717805433067,-2627.03423458,0.0002885,2]
[328805560,1717805433079,-408.73567761,0.00028864,2]
[328805561,1717805433089,-154.94418119,0.00028871,2]
[328805562,1717805433099,-164.27457146,0.00028959,30]
[328805563,1717805433109,-2627.03423458,0.00028996,2]
[328805564,1717805433120,-152.33140726,0.00029084,2]
[328805565,1717805433130,-152.45521484,0.00029108,2]
[328805566,1717805433140,-164.27457146,0.00029151,30]
[328805567,1717805433149,-155.29733055,0.00029159,2]
[328805568,1717805433159,-151.0,0.00029248,7]
[328805569,1717805433168,-154.94418119,0.00029261,2]
[328805570,1717805433178,-600.0,0.00029282,2]
[328805571,1717805433187,-154.94418119,0.00029284,2]
[328805572,1717805433197,-300.0,0.000293,2]
[328805573,1717805433206,-164.97986529,0.00029311,2]
[328805574,1717805433215,-164.27457146,0.00029342,30]
[328805575,1717805433225,-2627.03423458,0.0002936,2]
[328805576,1717805433234,-194.38289586,0.00029371,2]
[328805577,1717805433243,-150.0,0.00029392,2]
[328805578,1717805433252,-1000.0,0.000294,2]
[328805579,1717805433261,-153.16583406,0.00029435,2]
[328805580,1717805433271,-164.27457146,0.00029534,30]
[328805581,1717805433280,-154.45886144,0.00029568,2]
[328805582,1717805433292,-13430.783,0.000296,2]
[328805583,1717805433302,-1670.0,0.000296,2]
[328805584,1717805433311,-306.40574332,0.000296,15]
[328805585,1717805433321,-408.73567761,0.00029623,2]
[328805586,1717805433330,-306.40574327,0.00029633,15]
[328805587,1717805433341,-306.40574327,0.00029667,15]
[328805588,1717805433351,-161.725471,0.00029679,2]
[328805589,1717805433361,-164.27457146,0.00029699,30]
[328805590,1717805433372,-454.0,0.000297,5]
[328805591,1717805433382,-29104.076,0.000297,4]
[328805592,1717805433393,-29104.076,0.000297,4]
[328805593,1717805433403,-29104.076,0.000297,4]
[328805594,1717805433415,-29104.077,0.000297,4]
[328805595,1717805433426,-4322.94813194,0.000297,4]
[328805596,1717805433448,-578.5596183,0.000297,4]
[328805597,1717805433466,-499.2927066,0.000297,4]
[328805598,1717805433478,-13439.00812063,0.000297,4]
[328805599,1717805433490,-260.79473481,0.000297,4]
[328805600,1717805433504,-2260.06649913,0.000297,4]
[328805601,1717805433515,-2275.48656386,0.000297,4]
[328805602,1717805433529,-4611.58520454,0.000297,4]
[328805603,1717805433541,-856.33542019,0.000297,4]
[328805604,1717805433552,-1528.04753,0.000297,2]
[328805605,1717805433562,-306.40574327,0.000297,15]
[328805606,1717805433571,-408.73567761,0.00029703,2]
[328805607,1717805433582,-164.97986529,0.00029716,2]
[328805608,1717805433594,-194.38289586,0.00029722,2]
[328805609,1717805433604,-500.0,0.0002976,2]
[328805610,1717805433614,-600.0,0.00029784,2]
[328805611,1717805433623,-800.0,0.00029784,2]
[328805612,1717805433633,-702.0,0.0002979,7]
[328805613,1717805433643,-300.0,0.000298,2]
[328805614,1717805433653,-999.12,0.000298,2]
[328805615,1717805433663,-999.12,0.000298,2]
[328805616,1717805433673,-150.0,0.000298,2]
[328805617,1717805433684,-308.62,0.000298,2]
[328805618,1717805433694,-155.0,0.000298,2]
[328805619,1717805433707,-194.38289586,0.00029806,2]
[328805620,1717805433718,-2627.03423458,0.0002982,2]
[328805621,1717805433730,-82.21799775,0.00029828,2]
[328805622,1717805433743,-72.72618344,0.00029828,2]
[328805623,1717805433752,-161.13352789,0.00029834,2]
[328805624,1717805433762,-194.38289586,0.00029844,2]
[328805625,1717805433773,-152.33140726,0.00029846,2]
[328805626,1717805433782,-175.71459401,0.0002989,2]
[328805627,1717805433791,-164.27457146,0.0002989,30]
[328805628,1717805433801,-175.71459399,0.00029893,2]
[328805629,1717805433810,-175.71459399,0.00029897,2]
[328805630,1717805433820,-164.97986529,0.00029897,2]
[328805631,1717805433829,-647.85331357,0.000299,2]
[328805632,1717805433840,-5047.04568643,0.000299,2]
[328805633,1717805433850,-1000.0,0.000299,2]
[328805634,1717805433859,-681.2921,0.000299,2]
[328805635,1717805433869,-1626.46110083,0.000299,2]
[328805636,1717805433880,-175.71459399,0.000299,2]
[328805637,1717805433889,-164.97986529,0.00029902,2]
[328805638,1717805433898,-152.33140726,0.00029916,2]
[328805639,1717805433908,-210.5663474,0.00029986,2]
[328805640,1717805433918,-3838.414625,0.00029986,2]
[328805641,1717805433929,-160.8020285,0.0002999,2]
[328805642,1717805433939,-152.08,0.0002999,2]
[328805643,1717805433948,-200.0,0.0002999,7]
[328805644,1717805433958,-200.0,0.0002999,7]
[328805645,1717805433968,-200.0,0.0002999,7]
[328805646,1717805433977,-200.0,0.0002999,7]
[328805647,1717805433987,-200.0,0.0002999,7]
[328805648,1717805433997,-315.49868618,0.0002999,7]
[328805649,1717805434006,-200.0,0.0002999,7]
[328805650,1717805434015,-200.0,0.0002999,7]
[328805651,1717805434028,-200.0,0.0002999,7]
[328805652,1717805434037,-200.0,0.0002999,7]
[328805653,1717805434047,-200.0,0.0002999,7]
[328805654,1717805434056,-200.0,0.0002999,7]
[328805655,1717805434066,-200.0,0.0002999,7]
[328805656,1717805434075,-200.0,0.0002999,7]
[328805657,1717805434085,-200.0,0.0002999,7]
[328805658,1717805434094,-200.0,0.0002999,7]
[328805659,1717805434104,-200.0,0.0002999,7]
[328805660,1717805434114,-200.0,0.0002999,7]
[328805661,1717805434123,-200.0,0.0002999,7]
[328805662,1717805434132,-200.0,0.0002999,7]
[328805663,1717805434142,-200.0,0.0002999,7]
[328805664,1717805434151,-200.0,0.0002999,7]
[328805665,1717805434160,-200.0,0.0002999,7]
[328805666,1717805434169,-200.0,0.0002999,7]
[328805667,1717805434179,-200.0,0.0002999,7]
[328805668,1717805434188,-200.0,0.0002999,7]
[328805669,1717805434199,-200.0,0.0002999,7]
[328805670,1717805434208,-200.0,0.0002999,7]
[328805671,1717805434217,-200.0,0.0002999,7]
[328805672,1717805434227,-200.0,0.0002999,7]
[328805673,1717805434236,-200.0,0.0002999,7]
[328805674,1717805434246,-200.0,0.0002999,7]
[328805675,1717805434255,-157.00241608,0.0002999,7]
[328805676,1717805434503,-42.99758392,0.0002999,7]
[328805677,1717805434512,-200.0,0.0002999,7]
[328805678,1717805434522,-152.08,0.0002999,2]
[328805679,1717805434531,-152.08,0.0002999,2]
[328805680,1717805434540,-155.0,0.00029998,2]
[328805681,1717805434550,-155.0,0.00029998,2]
[328805682,1717805434559,-658.4965362,0.00029998,2]
[328805683,1717805434569,-3016.6443805,0.00029998,2]
[328805684,1717805434578,-6134.48041152,0.00029998,2]
[328805685,1717805434590,-4834.08296995,0.00029998,2]
[328805686,1717805434599,-234.92335311,0.00029998,2]
[328805687,1717805434609,-157.48411225,0.00029998,2]
[328805688,1717805434618,-155.0,0.00029998,2]
[328805689,1717805434627,-791.8094853,0.00029998,2]
[328805690,1717805434636,-155.1118971,0.00029998,2]
[328805691,1717805434645,-155.0,0.00029998,2]
[328805692,1717805434655,-208.03390212,0.00029998,2]
[328805693,1717805434664,-155.0,0.00029998,2]
[328805694,1717805434673,-201.51061122,0.00029998,2]
[328805695,1717805434682,-155.43220333,0.00029998,2]
[328805696,1717805434692,-345.31964735,0.00029998,2]
[328805697,1717805434701,-241.39477687,0.00029998,2]
[328805698,1717805434710,-155.0,0.00029998,2]
[328805699,1717805434720,-2006.2381672,0.00029998,2]
[328805700,1717805434729,-156.07751853,0.00029998,2]
[328805701,1717805434739,-4440.92771501,0.00029998,2]
[328805702,1717805434748,-625.28915843,0.00029998,2]
[328805703,1717805434757,-429.30674478,0.00029998,2]
[328805704,1717805434767,-1066.86599008,0.00029998,2]
[328805705,1717805434776,-155.3839327,0.00029998,2]
[328805706,1717805434786,-8415.28893931,0.00029998,2]
[328805707,1717805434795,-155.22070045,0.00029998,2]
[328805708,1717805434806,-237.28714739,0.00029998,2]
[328805709,1717805434815,-307.06708735,0.00029998,2]
[328805710,1717805434825,-155.0,0.00029998,2]
[328805711,1717805434836,-271.42441619,0.00029998,2]
[328805712,1717805434845,-701.43132,0.00029998,2]
[328805713,1717805434855,-155.78454438,0.00029998,2]
[328805714,1717805434864,-259.64019332,0.00029998,2]
[328805715,1717805434873,-155.38673951,0.00029998,3]
[328805716,1717805434883,-1651.91112842,0.00029998,2]
[328805717,1717805434892,-155.0,0.00029998,2]
[328805718,1717805434902,-292.2845789,0.00029998,2]
[328805719,1717805434911,-333.70241326,0.00029998,2]
[328805720,1717805434920,-207.45551021,0.00029998,2]
[328805721,1717805434930,-524.93081759,0.00029998,2]
[328805722,1717805434939,-156.80126126,0.00029998,2]
[328805723,1717805434948,-156.60759971,0.00029998,2]
[328805724,1717805434958,-182.92750907,0.00029998,2]
[328805725,1717805434967,-7529.62685189,0.00029998,2]
[328805726,1717805434976,-5569.04084293,0.00029998,2]
[328805727,1717805434985,-645.95513848,0.00029998,2]
[328805728,1717805434995,-1275.37927053,0.00029998,2]
[328805729,1717805435004,-424.7108407,0.00029998,2]
[328805730,1717805435013,-960.57363014,0.00029998,2]
[328805731,1717805435023,-268.8327842,0.00029998,2]
[328805732,1717805435037,-789.12357546,0.00029998,2]
[328805733,1717805435046,-324.6854332,0.00029998,2]
[328805734,1717805435056,-155.30571627,0.00029998,2]
[328805735,1717805435066,-155.30041863,0.00029998,2]
[328805736,1717805435078,-2367.15501921,0.00029998,2]
[328805737,1717805435087,-687.6604682,0.00029998,2]
[328805738,1717805435097,-155.9308215,0.00029998,2]
[328805739,1717805435108,-1739.32350196,0.00029998,2]
[328805740,1717805435117,-171.07258705,0.00029998,2]
[328805741,1717805435127,-1051.47566796,0.00029998,2]
[328805742,1717805435136,-207.25116372,0.00029998,2]
[328805743,1717805435145,-155.65968326,0.00029998,2]
[328805744,1717805435155,-191.66157986,0.00029998,2]
[328805745,1717805435164,-284.47667412,0.00029998,2]
[328805746,1717805435174,-222.68932042,0.00029998,2]
[328805747,1717805435183,-155.69171516,0.00029998,2]
[328805748,1717805435192,-196.76359582,0.00029998,2]
[328805749,1717805435202,-155.40326107,0.00029998,2]
[328805750,1717805435211,-156.03473304,0.00029998,2]
[328805751,1717805435220,-343.14205273,0.00029998,2]
[328805752,1717805435233,-723.5769244,0.00029998,2]
[328805753,1717805435243,-155.8597219,0.00029998,2]
[328805754,1717805435252,-166.16771595,0.00029998,2]
[328805755,1717805435261,-156.09057585,0.00029998,2]
[328805756,1717805435271,-357.77244657,0.00029998,2]
[328805757,1717805435280,-182.80161489,0.00029998,2]
[328805758,1717805435289,-174.53338987,0.00029998,2]
[328805759,1717805435301,-33.19483579,0.00029998,2]
[328805760,1717805435311,-203.11471077,0.00029998,2]
[328805761,1717805435320,-490.8225388,0.00029998,2]
[328805762,1717805435330,-157.63078057,0.00029998,2]
[328805763,1717805435339,-210.10333298,0.00029998,2]
[328805764,1717805435350,-83.59331865,0.00029998,2]
[328805765,1717805435366,-106.92799777,0.00029998,2]
[328805766,1717805435376,-192.8968547,0.00029998,2]
[328805767,1717805435386,-155.4910523,0.00029998,2]
[328805768,1717805435395,-156.00145897,0.00029998,2]
[328805769,1717805435404,-249.02412338,0.00029998,2]
[328805770,1717805435414,-1615.00090577,0.00029998,2]
[328805771,1717805435423,-268.59558881,0.00029998,2]
[328805772,1717805435432,-155.81904054,0.00029998,2]
[328805773,1717805435442,-155.51016798,0.00029998,2]
[328805774,1717805435451,-10530.78040028,0.00029998,2]
[328805775,1717805435461,-306.17517016,0.00029998,2]
[328805776,1717805435470,-501.58359612,0.00029998,2]
[328805777,1717805435479,-471.870501,0.00029998,2]
[328805778,1717805435489,-2469.60866711,0.00029998,2]
[328805779,1717805435499,-251.92950057,0.00029998,2]
[328805780,1717805435508,-541.08160965,0.00029998,2]
[328805781,1717805435519,-296.58359376,0.00029998,2]
[328805782,1717805435528,-197.16050136,0.00029998,7]
[328805783,1717805435538,-4288.3510068,0.00029998,2]
[328805784,1717805435548,-327.75202513,0.00029998,2]
[328805785,1717805435560,-1252.30935523,0.00029998,2]
[328805786,1717805435570,-2481.96719457,0.00029999,2]
[328805787,1717805435580,-345.5,0.00029999,2]
[328805788,1717805435590,-317.22839221,0.00029999,2]
[328805789,1717805435599,-208.82687971,0.00029999,2]
[328805790,1717805435609,-5891.81443567,0.00029999,2]
[328805791,1717805435619,-528.30756866,0.00029999,4]
[328805792,1717805435628,-342.0007,0.00029999,4]
[328805793,1717805435637,-255.68445519,0.00029999,4]
[328805794,1717805435646,-500.0,0.00029999,4]
[328805795,1717805435655,-355638.2172566,0.0003,13]
[328805798,1717805438167,-306.40574327,0.00029733,15]
[328805799,1717805438177,-455.57295748,0.000299,2]
[328805800,1717805438187,-457.0,0.00029999,5]
[328805801,1717805438196,-1965.70160266,0.0003,13]
[328805802,1717805438207,-25171.94727704,0.0003,13]
[328805803,1717805438295,-1324.38017791,0.0003,13]
[328805804,1717805438496,-2579.1609,0.0003,13]
[328805805,1717805438507,-4412.536073,0.0003,13]
[328805838,1717805441727,-3659.55690298,0.0003,13]
[328805842,1717805441880,-357.0,0.0003,13]
[328805843,1717805441951,-306.40574327,0.00029767,15]
[328805844,1717805441961,-151.38231606,0.0003,13]
[328805845,1717805441974,-1253.57361654,0.0003,13]
[328805846,1717805441986,-4602.25636388,0.0003,13]
[328805848,1717805442829,-114764.4726395,0.0003,13]
[328805850,1717805442841,-658.090015,0.0003,13]
[328805851,1717805442854,-685.80439866,0.0003,13]
[328805855,1717805443243,-442.0,0.00029999,5]
[328805856,1717805443254,-2093.40769813,0.0003,13]
[328805857,1717805443352,-26245.9407588,0.0003,13]
[328805858,1717805443365,-540.95890018,0.0003,13]
[328805874,1717805446380,-125975.13120819,0.0003,13]
[328805875,1717805447143,-306.40574327,0.000298,15]
[328805876,1717805447153,-713.0963008,0.0003,13]
[328805877,1717805447415,-2300.04061148,0.0003,13]
[328805878,1717805447545,-227467.21808097,0.0003,13]
[328805879,1717805458374,2610.75390442,0.00022048,2]
[328805964,1717806461779,378.57403771,0.00017259,2]
[328805965,1717806555124,-226.6238354,0.000201,2]
[328805966,1717806555150,-153.41,0.00024384,2]
[328805967,1717806555173,-238.25,0.00025442,2]
[328805968,1717806555195,-277.32738453,0.00026,2]
[328805969,1717806569533,226.6238354,0.00022499,2]
[328805970,1717806589501,226.6238354,0.00022499,2]
[328805971,1717806609502,226.6238354,0.00022499,2]
[328805972,1717806627508,226.6238354,0.00022499,2]
[328805973,1717806629589,4810.66022287,0.00025,2]
[328805988,1717806632500,-547.43728168,0.0002687,2]
[328805990,1717806632513,-1421.18809713,0.0002687,2]
[328805992,1717806632525,-105.58217399,0.0002687,2]
[328805994,1717806632535,-152.17856395,0.00026876,2]
[328805995,1717806632544,-300.394724,0.00026879,2]
[328805996,1717806632557,-1266.60175907,0.00026879,2]
[328805997,1717806632568,-1275.75232492,0.00026879,2]
[328805998,1717806632620,-1181.42468244,0.00026879,2]
[328805999,1717806632632,-4121.07153573,0.00026879,2]
[328806000,1717806632644,-3217.19687384,0.00026879,2]
[328806001,1717806632654,-2074.2075528,0.00026896,2]
[328806002,1717806632664,-158.03040468,0.00026907,2]
[328806003,1717806632675,-345.32638714,0.00026959,2]
[328806004,1717806632686,-2074.2075528,0.00026979,2]
[328806005,1717806632696,-153.81434452,0.00027042,2]
[328806006,1717806632706,-250.0,0.00027068,2]
[328806007,1717806632717,-153.81434452,0.00027073,2]
[328806008,1717806632726,-2074.2075528,0.00027113,2]
[328806009,1717806632737,-281.08953819,0.00027144,2]
[328806010,1717806632751,-1793.11801461,0.00027144,2]
[328806011,1717806632761,-250.0,0.00027197,2]
[328806012,1717806632771,-711.5,0.00027222,2]
[328806013,1717806632781,-4472.55,0.00027233,2]
[328806014,1717806632793,-180.37209279,0.00027239,2]
[328806015,1717806632803,-150.0,0.00027245,2]
[328806016,1717806632812,-154.88823295,0.00027257,2]
[328806017,1717806632822,-154.11201447,0.0002727,2]
[328806018,1717806632832,-345.32638714,0.00027297,2]
[328806019,1717806632842,-1000.0,0.000273,2]
[328806020,1717806632853,-152.6472124,0.00027302,2]
[328806021,1717806632863,-2074.2075528,0.00027335,2]
[328806022,1717806632873,-152.17856395,0.00027378,2]
[328806023,1717806632883,-161.725471,0.00027388,2]
[328806024,1717806632893,-152.80388073,0.00027448,2]
[328806025,1717806632903,-154.11201447,0.0002753,2]
[328806026,1717806632912,-152.17856395,0.00027557,2]
[328806027,1717806632922,-153.81434452,0.00027573,2]
[328806028,1717806632932,-345.32638714,0.0002758,2]
[328806029,1717806632942,-164.18983498,0.0002761,2]
[328806030,1717806632952,-183.65633961,0.00027611,2]
[328806031,1717806632961,-160.18864692,0.00027634,2]
[328806032,1717806632971,-153.81434452,0.00027643,2]
[328806033,1717806632981,-160.33226931,0.00027658,2]
[328806034,1717806632990,-155.29733055,0.00027706,2]
[328806035,1717806633000,-238.25,0.00027706,2]
[328806036,1717806633010,-164.18983498,0.00027743,2]
[328806037,1717806633019,-164.18983498,0.00027754,2]
[328806038,1717806633028,-345.32638714,0.00027768,2]
[328806039,1717806633039,-153.81434452,0.00027786,2]
[328806040,1717806633048,-856.02508729,0.00027812,2]
[328806041,1717806633060,-1218.18246551,0.00027812,2]
[328806042,1717806633070,-161.72547101,0.00027825,2]
[328806043,1717806633080,-345.32638714,0.0002789,2]
[328806044,1717806633090,-345.32638714,0.0002794,2]
[328806045,1717806633100,-164.18983498,0.00027942,2]
[328806046,1717806633109,-1000.0,0.00028,2]
[328806047,1717806633119,-152.80388073,0.00028042,2]
[328806048,1717806633129,-2074.2075528,0.0002814,2]
[328806049,1717806633139,-153.57588364,0.00028165,2]
[328806050,1717806633151,-1.72144691,0.00028165,2]
[328806051,1717806633160,-152.17856395,0.00028199,2]
[328806052,1717806633170,-164.18983498,0.00028324,2]
[328806053,1717806633180,-151.14659696,0.00028344,2]
[328806054,1717806633189,-164.18983498,0.00028383,2]
[328806055,1717806633198,-154.11201447,0.00028388,2]
[328806056,1717806633208,-116.0126637,0.00028459,2]
[328806057,1717806633220,-44.17598322,0.00028459,2]
[328806058,1717806633229,-345.32638714,0.00028491,2]
[328806059,1717806633239,-128.89784191,0.000285,2]
[328806060,1717806635081,-216.42854523,0.000285,2]
[328806061,1717806635092,-154.11201447,0.00028507,2]
[328806062,1717806635102,-159.22759623,0.00028582,2]
[328806063,1717806635111,-2074.2075528,0.00028591,2]
[328806064,1717806635121,-345.32638714,0.00028605,2]
[328806065,1717806635130,-152.80388073,0.00028638,2]
[328806066,1717806635140,-1645.13,0.0002864,15]
[328806067,1717806635150,-1645.13,0.0002864,15]
[328806068,1717806635159,-1645.13,0.0002864,15]
[328806069,1717806635169,-1645.13,0.0002864,15]
[328806070,1717806635180,-164.18983498,0.00028664,2]
[328806071,1717806635190,-154.11201447,0.000287,2]
[328806072,1717806635200,-345.32638714,0.00028743,2]
[328806073,1717806635210,-152.17856395,0.00028782,2]
[328806074,1717806635220,-164.18983498,0.00028787,2]
[328806075,1717806635230,-2074.2075528,0.00028817,2]
[328806076,1717806635241,-152.17856395,0.00028885,2]
[328806077,1717806635251,-152.80388073,0.00028894,2]
[328806078,1717806635261,-1645.13,0.00028914,15]
[328806079,1717806635272,-1645.13,0.00028914,15]
[328806080,1717806635282,-166.66666667,0.00028977,2]
[328806081,1717806635292,-2074.2075528,0.00028994,2]
[328806082,1717806635304,-2074.2075528,0.00028997,2]
[328806083,1717806635315,-1000.0,0.00029,15]
[328806084,1717806635326,-853.71289771,0.00029014,2]
[328806085,1717806635339,-1220.49465509,0.00029014,2]
[328806086,1717806635352,-345.32638714,0.00029085,2]
[328806087,1717806635362,-154.45886144,0.00029105,2]
[328806088,1717806635377,-154.11201447,0.00029118,2]
[328806089,1717806635388,-154.11201447,0.00029122,2]
[328806090,1717806635399,-256.5195923,0.0002913,2]
[328806091,1717806635410,-164.18983498,0.00029162,2]
[328806092,1717806635420,-1221.45827845,0.00029187,15]
[328806094,1717806635433,-423.67172155,0.00029187,15]